fUSD/lending_fUSD_20240426
["ID","MTS","AMOUNT","RATE_DAILY","PERIOD"]
[323666679,1714152638821,-500.0,0.00011285,2]
[323666680,1714152638831,-524.5,0.00011285,2]
[323666681,1714152638840,-618.61,0.00011285,2]
[323666682,1714152638851,-500.0,0.00011285,2]
[323666683,1714152638861,-500.0,0.00011285,2]
[323666684,1714152638871,-500.0,0.00011285,2]
[323666685,1714152638881,-361.93,0.00011285,2]
[323666686,1714152638890,-932.82,0.00011285,2]
[323666687,1714152638900,-500.0,0.00011285,2]
[323666688,1714152638909,-500.0,0.00011285,2]
[323666689,1714152638918,-500.0,0.00011285,2]
[323666690,1714152638928,-500.0,0.00011285,2]
[323666691,1714152638939,-1538.8,0.00011285,2]
[323666692,1714152638948,-1521.87,0.00011285,2]
[323666693,1714152638958,-500.0,0.00011285,2]
[323666694,1714152638967,-500.0,0.00011285,2]
[323666695,1714152638977,-500.0,0.00011285,2]
[323666696,1714152638986,-500.0,0.00011285,2]
[323666697,1714152638995,-500.0,0.00011285,2]
[323666698,1714152639004,-500.0,0.00011285,2]
[323666699,1714152639014,-500.0,0.00011285,2]
[323666700,1714152639023,-552.41,0.00011285,2]
[323666701,1714152639032,-498.27609352,0.00011285,2]
[323666702,1714152639042,-1697.94,0.00011285,2]
[323666703,1714152639051,-500.0,0.00011285,2]
[323666704,1714152639061,-500.0,0.00011285,2]
[323666705,1714152639070,-500.0,0.00011285,2]
[323666706,1714152639079,-500.0,0.00011285,2]
[323666707,1714152639088,-500.0,0.00011285,2]
[323666708,1714152639098,-500.0,0.00011285,2]
[323666709,1714152639109,-150.0,0.00011285,2]
[323666710,1714152639118,-500.0,0.00011285,2]
[323666711,1714152639127,-651.13,0.00011285,2]
[323666712,1714152639137,-594.35,0.00011285,2]
[323666713,1714152639146,-500.0,0.00011285,2]
[323666714,1714152639155,-500.0,0.00011285,2]
[323666715,1714152639165,-500.0,0.00011285,2]
[323666716,1714152639175,-500.0,0.00011285,2]
[323666717,1714152639185,-500.0,0.00011285,2]
[323666718,1714152639194,-500.0,0.00011285,2]
[323666719,1714152639204,-500.0,0.00011285,2]
[323666720,1714152639213,-285.74560087,0.00011285,2]
[323666721,1714152639223,-502.50981175,0.00011285,2]
[323666722,1714152639232,-686.74,0.00011285,2]
[323666723,1714152639240,-500.0,0.00011285,2]
[323666724,1714152639250,-500.0,0.00011285,2]
[323666725,1714152639258,-500.0,0.00011285,2]
[323666726,1714152639269,-505.50605674,0.00011285,2]
[323666727,1714152639279,-500.0,0.00011285,2]
[323666728,1714152639288,-500.0,0.00011285,2]
[323666729,1714152639297,-500.0,0.00011285,2]
[323666730,1714152639306,-539.56884426,0.00011285,2]
[323666731,1714152639315,-511.98821885,0.00011285,2]
[323666732,1714152639324,-500.0,0.00011285,2]
[323666733,1714152639333,-500.0,0.00011285,2]
[323666734,1714152639343,-500.0,0.00011285,2]
[323666735,1714152639352,-500.0,0.00011285,2]
[323666736,1714152639361,-500.0,0.00011285,2]
[323666737,1714152639370,-500.0,0.00011285,2]
[323666738,1714152639381,-500.0,0.00011285,2]
[323666739,1714152639390,-500.0,0.00011285,2]
[323666740,1714152639399,-539.3,0.00011285,2]
[323666741,1714152639409,-623.98,0.00011285,2]
[323666742,1714152639420,-500.0,0.00011285,2]
[323666743,1714152639429,-502.82101681,0.00011285,2]
[323666744,1714152639439,-500.0,0.00011285,2]
[323666747,1714152639455,-500.0,0.00011285,2]
[323666748,1714152639465,-500.0,0.00011285,2]
[323666750,1714152639475,-500.0,0.00011285,2]
[323666752,1714152639484,-578.68,0.00011285,2]
[323666753,1714152639493,-500.0,0.00011285,2]
[323666754,1714152639502,-500.0,0.00011285,2]
[323666755,1714152639511,-1944.11,0.00011285,2]
[323666756,1714152639521,-500.0,0.00011285,2]
[323666757,1714152639531,-500.0,0.00011285,2]
[323666758,1714152639540,-500.0,0.00011285,2]
[323666759,1714152639550,-500.0,0.00011285,2]
[323666760,1714152639559,-500.0,0.00011285,2]
[323666761,1714152639569,-1094.02,0.00011285,2]
[323666762,1714152639578,-500.0,0.00011285,2]
[323666763,1714152639588,-500.0,0.00011285,2]
[323666764,1714152639596,-500.0,0.00011285,2]
[323666765,1714152639607,-500.0,0.00011285,2]
[323666766,1714152639616,-500.0,0.00011285,2]
[323666767,1714152639625,-500.0,0.00011285,2]
[323666768,1714152639634,-1541.07,0.00011285,2]
[323666769,1714152639644,-504.28361255,0.00011285,2]
[323666770,1714152639653,-500.0,0.00011285,2]
[323666771,1714152639663,-500.0,0.00011285,2]
[323666772,1714152639673,-500.0,0.00011285,2]
[323666773,1714152639683,-606.83,0.00011285,2]
[323666774,1714152639692,-500.0,0.00011285,2]
[323666775,1714152639701,-503.80555505,0.00011285,2]
[323666776,1714152639711,-500.0,0.00011285,2]
[323666777,1714152639720,-504.19840383,0.00011285,2]
[323666778,1714152639730,-500.0,0.00011285,2]
[323666779,1714152639739,-500.0,0.00011285,2]
[323666780,1714152639749,-500.0,0.00011285,2]
[323666781,1714152639758,-1042.16,0.00011285,2]
[323666782,1714152639767,-608.61,0.00011285,2]
[323666783,1714152639776,-500.0,0.00011285,2]
[323666784,1714152639786,-500.0,0.00011285,2]
[323666785,1714152639794,-500.0,0.00011285,2]
[323666786,1714152639803,-500.94635741,0.00011285,2]
[323666787,1714152639812,-500.0,0.00011285,2]
[323666788,1714152639821,-502.64603092,0.00011285,2]
[323666789,1714152639830,-500.0,0.00011285,2]
[323666790,1714152639839,-8432.15,0.00011285,2]
[323666791,1714152639848,-500.0,0.00011285,2]
[323666792,1714152639858,-506.7115621,0.00011285,2]
[323666793,1714152639868,-1429.23,0.00011285,2]
[323666794,1714152639877,-500.0,0.00011285,2]
[323666795,1714152639886,-7681.17,0.00011285,2]
[323666796,1714152639895,-500.0,0.00011285,2]
[323666797,1714152639904,-506.91934976,0.00011285,2]
[323666798,1714152639913,-8762.46,0.00011285,2]
[323666799,1714152639922,-500.0,0.00011285,2]
[323666800,1714152639931,-2563.29,0.00011285,2]
[323666801,1714152639942,-1039.18,0.00011285,2]
[323666802,1714152639951,-500.0,0.00011285,2]
[323666803,1714152639960,-1019.97,0.00011285,2]
[323666804,1714152639969,-500.0,0.00011285,2]
[323666805,1714152639978,-500.0,0.00011285,2]
[323666806,1714152639988,-3533.62,0.00011285,2]
[323666807,1714152639997,-3765.55,0.00011285,2]
[323666808,1714152640007,-500.0,0.00011285,2]
[323666809,1714152640016,-502.56317091,0.00011285,2]
[323666810,1714152640025,-500.0,0.00011285,2]
[323666812,1714152640034,-500.0,0.00011285,2]
[323666814,1714152640043,-500.0,0.00011285,2]
[323666816,1714152640052,-736.35,0.00011285,2]
[323666818,1714152640061,-6504.27,0.00011285,2]
[323666820,1714152640071,-502.97114621,0.00011285,2]
[323666822,1714152640080,-500.0,0.00011285,2]
[323666824,1714152640089,-500.0,0.00011285,2]
[323666826,1714152640099,-1592.05,0.00011285,2]
[323666827,1714152640108,-3157.13,0.00011285,2]
[323666829,1714152640117,-1135.78,0.00011285,2]
[323666831,1714152640127,-500.0,0.00011285,2]
[323666833,1714152640137,-500.0,0.00011285,2]
[323666835,1714152640146,-500.0,0.00011285,2]
[323666838,1714152640155,-644.12,0.00011285,2]
[323666840,1714152640164,-500.0,0.00011285,2]
[323666842,1714152640173,-500.0,0.00011285,2]
[323666844,1714152640184,-500.0,0.00011285,2]
[323666869,1714152640410,-7969.39,0.00011285,2]
[323666871,1714152640426,-500.0,0.00011285,2]
[323666873,1714152640436,-500.0,0.00011285,2]
[323666875,1714152640445,-500.0,0.00011285,2]
[323666877,1714152640455,-1366.85,0.00011285,2]
[323666878,1714152640464,-2800.02,0.00011285,2]
[323666879,1714152640473,-505.57073169,0.00011285,2]
[323666880,1714152640482,-1139.1,0.00011285,2]
[323666881,1714152640492,-500.0,0.00011285,2]
[323666882,1714152640502,-13491.72,0.00011285,2]
[323666883,1714152640513,-614.26,0.00011285,2]
[323666884,1714152640523,-371.00801038,0.00011285,2]
[323666885,1714152640533,-500.0,0.00011285,2]
[323666886,1714152640543,-1952.86,0.00011285,2]
[323666887,1714152640552,-500.0,0.00011285,2]
[323666888,1714152640562,-2172.02,0.00011285,2]
[323666889,1714152640572,-502.35856832,0.00011285,2]
[323666890,1714152640581,-500.0,0.00011285,2]
[323666891,1714152640590,-500.0,0.00011285,2]
[323666892,1714152640600,-1646.7,0.00011285,2]
[323666893,1714152640611,-2097.22,0.00011285,2]
[323666894,1714152640621,-500.0,0.00011285,2]
[323666895,1714152640631,-500.0,0.00011285,2]
[323666896,1714152640641,-1005.85,0.00011285,2]
[323666897,1714152640651,-508.32733147,0.00011285,2]
[323666898,1714152640660,-786.45,0.00011285,2]
[323666899,1714152640669,-500.76453493,0.00011285,2]
[323666900,1714152640678,-500.0,0.00011285,2]
[323666901,1714152640690,-500.0,0.00011285,2]
[323666902,1714152640701,-3677.42,0.00011285,2]
[323666903,1714152640710,-500.0,0.00011285,2]
[323666904,1714152640719,-2434.91,0.00011285,2]
[323666905,1714152640728,-1714.94,0.00011285,2]
[323666906,1714152640737,-500.44760964,0.00011285,2]
[323666907,1714152640746,-500.0,0.00011285,2]
[323666908,1714152640755,-500.0,0.00011285,2]
[323666909,1714152640764,-500.0,0.00011285,2]
[323666910,1714152640775,-1408.07,0.00011285,2]
[323666911,1714152640784,-500.0,0.00011285,2]
[323666912,1714152640793,-500.22937014,0.00011285,2]
[323666913,1714152640802,-500.0,0.00011285,2]
[323666914,1714152640811,-500.0,0.00011285,2]
[323666915,1714152640820,-500.0,0.00011285,2]
[323666916,1714152640829,-500.48784711,0.00011285,2]
[323666917,1714152640838,-500.0,0.00011285,2]
[323666918,1714152640847,-500.0,0.00011285,2]
[323666919,1714152640857,-500.0,0.00011285,2]
[323666920,1714152640866,-500.0,0.00011285,2]
[323666921,1714152640876,-500.0,0.00011285,2]
[323666922,1714152640885,-2182.57,0.00011285,2]
[323666923,1714152640895,-2126.65,0.00011285,2]
[323666924,1714152640904,-500.0,0.00011285,2]
[323666925,1714152640915,-1585.81,0.00011285,2]
[323666926,1714152640924,-1806.59,0.00011285,2]
[323666927,1714152640934,-500.0,0.00011285,2]
[323666928,1714152640944,-500.0,0.00011285,2]
[323666929,1714152640954,-460.08085227,0.00011285,2]
[323666930,1714152640964,-1443.3,0.00011285,2]
[323666931,1714152640973,-500.0,0.00011285,2]
[323666932,1714152640985,-1954.01,0.00011285,2]
[323666933,1714152640994,-500.0,0.00011285,2]
[323666934,1714152641003,-500.0,0.00011285,2]
[323666935,1714152641014,-500.0,0.00011285,2]
[323666936,1714152641025,-501.21491854,0.00011285,2]
[323666937,1714152641034,-500.0,0.00011285,2]
[323666938,1714152641044,-2523.19,0.00011285,2]
[323666939,1714152641055,-500.0,0.00011285,2]
[323666940,1714152641067,-5903.03,0.00011285,2]
[323666941,1714152641077,-500.0,0.00011285,2]
[323666942,1714152641086,-500.0,0.00011285,2]
[323666943,1714152641096,-1056.76,0.00011285,2]
[323666944,1714152641105,-500.0,0.00011285,2]
[323666945,1714152641114,-500.0,0.00011285,2]
[323666946,1714152641123,-850.88,0.00011285,2]
[323666947,1714152641133,-500.0,0.00011285,2]
[323666948,1714152641142,-2248.98,0.00011285,2]
[323666949,1714152641151,-172.51,0.00011285,2]
[323666950,1714152641160,-500.0,0.00011285,2]
[323666951,1714152641171,-502.75305929,0.00011285,2]
[323666952,1714152641181,-500.0,0.00011285,2]
[323666953,1714152641192,-592.11,0.00011285,2]
[323666954,1714152641201,-1398.04,0.00011285,2]
[323666955,1714152641210,-500.0,0.00011285,2]
[323666956,1714152641219,-440.6,0.00011285,2]
[323666957,1714152641229,-500.0,0.00011285,2]
[323666958,1714152641239,-914.25,0.00011285,2]
[323666959,1714152641249,-500.0,0.00011285,2]
[323666960,1714152641260,-3366.48,0.00011285,2]
[323666961,1714152641271,-605.23,0.00011285,2]
[323666962,1714152641280,-500.0,0.00011285,2]
[323666963,1714152641289,-500.0,0.00011285,2]
[323666964,1714152641299,-500.0,0.00011285,2]
[323666965,1714152641309,-2883.8,0.00011285,2]
[323666966,1714152641318,-500.0,0.00011285,2]
[323666967,1714152641329,-500.0,0.00011285,2]
[323666968,1714152641339,-500.0,0.00011285,2]
[323666969,1714152641351,-500.0,0.00011285,2]
[323666970,1714152641360,-500.0,0.00011285,2]
[323666971,1714152641370,-1035.0,0.00011285,2]
[323666972,1714152641380,-747.93,0.00011285,2]
[323666973,1714152641389,-6289.52,0.00011285,2]
[323666974,1714152641399,-1742.3,0.00011285,2]
[323666975,1714152641409,-1410.86,0.00011285,2]
[323666976,1714152641420,-4125.89,0.00011285,2]
[323666977,1714152641430,-5227.03,0.00011285,2]
[323666978,1714152641440,-500.0,0.00011285,2]
[323666979,1714152641451,-500.0,0.00011285,2]
[323666980,1714152641461,-4007.5,0.00011285,2]
[323666981,1714152641470,-500.0,0.00011285,2]
[323666982,1714152641480,-500.0,0.00011285,2]
[323666983,1714152641490,-1772.46,0.00011285,2]
[323666984,1714152641499,-500.0,0.00011285,2]
[323666985,1714152641508,-500.0,0.00011286,2]
[323666986,1714152641517,-500.0,0.00011286,2]
[323666987,1714152641529,-500.0,0.00011286,2]
[323666988,1714152641538,-500.0,0.00011286,2]
[323666989,1714152641547,-500.0,0.00011286,2]
[323666990,1714152641557,-500.0,0.00011286,2]
[323666991,1714152641566,-500.0,0.00011286,2]
[323666992,1714152641575,-500.0,0.00011286,2]
[323666993,1714152641584,-500.0,0.00011286,2]
[323666994,1714152641594,-500.0,0.00011286,2]
[323666995,1714152641603,-500.0,0.00011286,2]
[323666996,1714152641612,-500.0,0.00011286,2]
[323666997,1714152641621,-500.0,0.00011286,2]
[323666998,1714152641630,-500.0,0.00011286,2]
[323666999,1714152641639,-500.0,0.00011286,2]
[323667000,1714152641649,-235.12,0.00011286,2]
[323667001,1714152641658,-500.0,0.00011286,2]
[323667002,1714152641668,-500.0,0.00011286,2]
[323667003,1714152641678,-635.74393215,0.00011286,2]
[323667004,1714152641688,-500.0,0.00011286,2]
[323667005,1714152641698,-500.0,0.00011286,2]
[323667006,1714152641707,-500.0,0.00011286,2]
[323667007,1714152641716,-500.0,0.00011286,2]
[323667008,1714152641726,-500.0,0.00011286,2]
[323667009,1714152641736,-500.0,0.00011286,2]
[323667010,1714152641745,-500.0,0.00011286,2]
[323667011,1714152641755,-500.0,0.00011286,2]
[323667012,1714152641764,-500.0,0.00011286,2]
[323667013,1714152641773,-500.0,0.00011286,2]
[323667014,1714152641783,-500.0,0.00011286,2]
[323667015,1714152641792,-500.0,0.00011286,2]
[323667016,1714152641801,-500.0,0.00011286,2]
[323667017,1714152641810,-500.0,0.00011286,2]
[323667018,1714152641819,-500.0,0.00011286,2]
[323667019,1714152641828,-500.0,0.00011286,2]
[323667020,1714152641837,-500.0,0.00011286,2]
[323667021,1714152641847,-500.0,0.00011286,2]
[323667022,1714152641856,-500.0,0.00011286,2]
[323667023,1714152641865,-500.0,0.00011286,2]
[323667024,1714152641874,-500.0,0.00011286,2]
[323667025,1714152641883,-500.0,0.00011286,2]
[323667026,1714152641892,-500.0,0.00011286,2]
[323667027,1714152641902,-500.0,0.00011286,2]
[323667028,1714152641911,-500.0,0.00011286,2]
[323667029,1714152641920,-500.0,0.00011286,2]
[323667030,1714152641929,-500.0,0.00011286,2]
[323667031,1714152641942,-500.0,0.00011286,2]
[323667032,1714152641951,-500.0,0.00011286,2]
[323667033,1714152641960,-500.0,0.00011286,2]
[323667034,1714152641970,-500.0,0.00011286,2]
[323667035,1714152641979,-500.0,0.00011286,2]
[323667036,1714152641988,-500.0,0.00011286,2]
[323667037,1714152641996,-500.0,0.00011286,2]
[323667038,1714152642005,-536.32,0.00011286,2]
[323667039,1714152642014,-500.0,0.00011286,2]
[323667040,1714152642023,-500.0,0.00011286,2]
[323667041,1714152642033,-500.0,0.00011286,2]
[323667042,1714152642042,-500.0,0.00011286,2]
[323667043,1714152642051,-500.0,0.00011286,2]
[323667044,1714152642060,-500.0,0.00011286,2]
[323667045,1714152642069,-500.0,0.00011286,2]
[323667046,1714152642078,-411.49356513,0.00011286,2]
[323667047,1714152642087,-500.0,0.00011286,2]
[323667048,1714152642096,-469.58,0.00011286,2]
[323667049,1714152642106,-357.62,0.00011286,2]
[323667050,1714152642115,-500.0,0.00011286,2]
[323667051,1714152642124,-500.0,0.00011286,2]
[323667052,1714152642133,-753.98,0.00011286,2]
[323667053,1714152642142,-500.0,0.00011286,2]
[323667054,1714152642152,-500.0,0.00011286,2]
[323667055,1714152642162,-500.0,0.00011286,2]
[323667056,1714152642171,-643.54,0.00011286,2]
[323667057,1714152642180,-500.0,0.00011286,2]
[323667058,1714152642192,-500.0,0.00011286,2]
[323667059,1714152642202,-604.46,0.00011286,2]
[323667060,1714152642211,-627.98,0.00011286,2]
[323667061,1714152642220,-500.0,0.00011286,2]
[323667062,1714152642229,-500.0,0.00011286,2]
[323667063,1714152642238,-500.0,0.00011286,2]
[323667064,1714152642248,-500.0,0.00011286,2]
[323667065,1714152642257,-500.0,0.00011286,2]
[323667066,1714152642266,-500.0,0.00011286,2]
[323667067,1714152642275,-529.56,0.00011286,2]
[323667068,1714152642284,-500.0,0.00011286,2]
[323667069,1714152642293,-500.0,0.00011286,2]
[323667070,1714152642302,-500.0,0.00011286,2]
[323667071,1714152642311,-500.0,0.00011286,2]
[323667072,1714152642320,-500.0,0.00011286,2]
[323667073,1714152642329,-386.1,0.00011286,2]
[323667075,1714152642338,-500.0,0.00011286,2]
[323667077,1714152642347,-1388.14,0.00011286,2]
[323667078,1714152642355,-500.0,0.00011286,2]
[323667079,1714152642365,-500.0,0.00011286,2]
[323667080,1714152642374,-500.0,0.00011286,2]
[323667081,1714152642383,-500.0,0.00011286,2]
[323667082,1714152642392,-500.0,0.00011286,2]
[323667084,1714152642401,-500.0,0.00011286,2]
[323667085,1714152642412,-500.0,0.00011286,2]
[323667086,1714152642422,-500.0,0.00011286,2]
[323667087,1714152642431,-500.0,0.00011286,2]
[323667089,1714152642446,-500.0,0.00011286,2]
[323667091,1714152642455,-500.0,0.00011286,2]
[323667094,1714152642466,-786.29,0.00011286,2]
[323667096,1714152642475,-500.0,0.00011286,2]
[323667098,1714152642486,-500.0,0.00011286,2]
[323667100,1714152642495,-500.0,0.00011286,2]
[323667102,1714152642506,-500.0,0.00011286,2]
[323667104,1714152642516,-500.0,0.00011286,2]
[323667105,1714152642525,-829.23,0.00011286,2]
[323667108,1714152642535,-500.0,0.00011286,2]
[323667110,1714152642546,-500.0,0.00011286,2]
[323667112,1714152642555,-500.0,0.00011286,2]
[323667113,1714152642564,-735.34,0.00011286,2]
[323667114,1714152642573,-541.26,0.00011286,2]
[323667115,1714152642582,-500.0,0.00011286,2]
[323667116,1714152642591,-530.27,0.00011286,2]
[323667117,1714152642600,-500.0,0.00011286,2]
[323667118,1714152642610,-500.0,0.00011286,2]
[323667119,1714152642619,-1517.55,0.00011286,2]
[323667120,1714152642628,-680.93,0.00011286,2]
[323667121,1714152642638,-245.95108401,0.00011286,2]
[323667122,1714152642647,-500.0,0.00011286,2]
[323667123,1714152642657,-500.0,0.00011286,2]
[323667124,1714152642666,-749.86,0.00011286,2]
[323667125,1714152642676,-500.0,0.00011286,2]
[323667126,1714152642686,-500.0,0.00011286,2]
[323667127,1714152642695,-500.0,0.00011286,2]
[323667128,1714152642704,-500.0,0.00011286,2]
[323667129,1714152642714,-500.0,0.00011286,2]
[323667130,1714152642723,-500.0,0.00011286,2]
[323667131,1714152642732,-500.0,0.00011286,2]
[323667132,1714152642742,-500.0,0.00011286,2]
[323667133,1714152642751,-157.01543514,0.00011286,2]
[323667134,1714152642760,-1028.81,0.00011286,2]
[323667135,1714152642770,-500.0,0.00011286,2]
[323667136,1714152642779,-500.0,0.00011286,2]
[323667137,1714152642788,-500.0,0.00011286,2]
[323667138,1714152642797,-500.0,0.00011286,2]
[323667139,1714152642807,-500.0,0.00011286,2]
[323667140,1714152642816,-500.0,0.00011286,2]
[323667141,1714152642826,-500.0,0.00011286,2]
[323667142,1714152642837,-1024.18,0.00011286,2]
[323667143,1714152642846,-500.0,0.00011286,2]
[323667144,1714152642856,-500.0,0.00011286,2]
[323667145,1714152642865,-500.0,0.00011286,2]
[323667146,1714152642875,-500.0,0.00011286,2]
[323667147,1714152642884,-500.0,0.00011286,2]
[323667148,1714152642892,-500.0,0.00011286,2]
[323667149,1714152642901,-870.9,0.00011286,2]
[323667150,1714152642912,-500.0,0.00011286,2]
[323667151,1714152642921,-759.36,0.00011286,2]
[323667152,1714152642931,-500.0,0.00011286,2]
[323667153,1714152642945,-500.0,0.00011286,2]
[323667154,1714152642954,-500.0,0.00011286,2]
[323667155,1714152642963,-500.0,0.00011286,2]
[323667156,1714152642973,-500.0,0.00011286,2]
[323667157,1714152642982,-500.0,0.00011286,2]
[323667158,1714152642991,-500.0,0.00011286,2]
[323667159,1714152643001,-500.0,0.00011286,2]
[323667160,1714152643010,-500.0,0.00011286,2]
[323667161,1714152643020,-500.0,0.00011286,2]
[323667163,1714152643030,-223.98646344,0.00011286,2]
[323667165,1714152643039,-500.0,0.00011286,2]
[323667167,1714152643047,-500.0,0.00011286,2]
[323667169,1714152643056,-500.0,0.00011286,2]
[323667172,1714152643066,-500.0,0.00011286,2]
[323667175,1714152643075,-500.0,0.00011286,2]
[323667177,1714152643084,-1158.93,0.00011286,2]
[323667179,1714152643094,-500.0,0.00011286,2]
[323667181,1714152643103,-906.39,0.00011286,2]
[323667183,1714152643112,-500.0,0.00011286,2]
[323667185,1714152643122,-500.0,0.00011286,2]
[323667187,1714152643132,-500.0,0.00011286,2]
[323667189,1714152643141,-500.0,0.00011286,2]
[323667191,1714152643150,-500.0,0.00011286,2]
[323667193,1714152643159,-500.0,0.00011286,2]
[323667195,1714152643168,-500.0,0.00011286,2]
[323667197,1714152643177,-1202.3,0.00011286,2]
[323667199,1714152643187,-500.0,0.00011286,2]
[323667200,1714152643196,-500.0,0.00011286,2]
[323667201,1714152643206,-500.0,0.00011286,2]
[323667202,1714152643215,-344.72,0.00011286,2]
[323667203,1714152643225,-500.0,0.00011286,2]
[323667204,1714152643234,-500.0,0.00011286,2]
[323667205,1714152643244,-500.0,0.00011286,2]
[323667206,1714152643253,-500.0,0.00011286,2]
[323667207,1714152643262,-500.0,0.00011286,2]
[323667208,1714152643271,-500.0,0.00011286,2]
[323667209,1714152643280,-500.0,0.00011286,2]
[323667210,1714152643289,-500.0,0.00011286,2]
[323667211,1714152643298,-500.0,0.00011286,2]
[323667212,1714152643307,-500.0,0.00011286,2]
[323667213,1714152643316,-500.0,0.00011286,2]
[323667214,1714152643326,-500.0,0.00011286,2]
[323667215,1714152643335,-500.0,0.00011286,2]
[323667216,1714152643344,-782.28,0.00011286,2]
[323667217,1714152643352,-500.0,0.00011286,2]
[323667218,1714152643362,-500.0,0.00011286,2]
[323667219,1714152643371,-500.0,0.00011286,2]
[323667220,1714152643380,-648.04,0.00011286,2]
[323667221,1714152643389,-172.50542432,0.00011286,2]
[323667222,1714152643398,-500.0,0.00011286,2]
[323667223,1714152643407,-500.0,0.00011286,2]
[323667224,1714152643418,-500.0,0.00011286,2]
[323667225,1714152643429,-500.0,0.00011286,2]
[323667226,1714152643442,-500.0,0.00011286,2]
[323667227,1714152643452,-500.0,0.00011286,2]
[323667228,1714152643463,-500.0,0.00011286,2]
[323667229,1714152643472,-500.0,0.00011286,2]
[323667230,1714152643481,-500.0,0.00011286,2]
[323667231,1714152643490,-500.0,0.00011286,2]
[323667232,1714152643500,-500.0,0.00011286,2]
[323667233,1714152643510,-500.0,0.00011286,2]
[323667234,1714152643520,-500.0,0.00011286,2]
[323667235,1714152643530,-500.0,0.00011286,2]
[323667236,1714152643541,-500.0,0.00011286,2]
[323667237,1714152643551,-612.48,0.00011286,2]
[323667238,1714152643561,-504.3450689,0.00011286,2]
[323667239,1714152643570,-503.54498219,0.00011286,2]
[323667240,1714152643580,-500.0,0.00011286,2]
[323667241,1714152643589,-500.0,0.00011286,2]
[323667242,1714152643599,-942.76,0.00011286,2]
[323667243,1714152643609,-500.0,0.00011286,2]
[323667244,1714152643618,-733.55,0.00011286,2]
[323667245,1714152643628,-500.0,0.00011286,2]
[323667246,1714152643637,-500.0,0.00011286,2]
[323667247,1714152643646,-336.32,0.00011286,2]
[323667248,1714152643656,-500.0,0.00011286,2]
[323667249,1714152643665,-8837.03,0.00011286,2]
[323667250,1714152643674,-500.0,0.00011286,2]
[323667251,1714152643684,-500.0,0.00011286,2]
[323667252,1714152643694,-500.0,0.00011286,2]
[323667253,1714152643704,-500.0,0.00011286,2]
[323667254,1714152643713,-604.76,0.00011286,2]
[323667255,1714152643723,-7957.99,0.00011286,2]
[323667256,1714152643733,-1800.75,0.00011286,2]
[323667257,1714152643743,-500.0,0.00011286,2]
[323667258,1714152643752,-500.0,0.00011286,2]
[323667259,1714152643761,-500.0,0.00011286,2]
[323667260,1714152643771,-500.0,0.00011286,2]
[323667261,1714152643781,-500.0,0.00011286,2]
[323667262,1714152643790,-2046.11,0.00011286,2]
[323667263,1714152643800,-500.0,0.00011286,2]